{"text_format":"3","workbook":"xlsx","n_sheets":4,"sheets":["START","PARAMETRY PROJEKTU","SZCZEGÓŁY PROJEKTU","SUMY PROJEKTU"],"not_rendered":{"charts":2,"defined_names":3,"pivot_tables":1},"read":"whole","date_system":"1900"}

{"sheet":"START","index":0,"n_rows":7,"n_cols":2,"rows_kept":7}
[null,"INFORMACJE O TYM SZABLONIE"]
[null,"Ten skoroszyt do planowania wydarzenia umożliwia śledzenie parametry projektu, szczegóły projektu i sumy projektu."]
[null,"Wprowadź informacje w arkuszu Parametry projektu, aby zaktualizować wykresy kolumnowe i informacje w arkuszu Szczegóły projektu. Tabela przestawna w arkuszu Sumy projektu jest aktualizowana automatycznie."]
[null,"Wprowadź nazwa firmy w arkuszu Parametry, a zostanie ona automatycznie zaktualizowana w innych arkuszach."]
[null,"Uwaga:  "]
[null,"W kolumnie A w każdym arkuszu skoroszytu ŚLEDZENIE PLANOWANIA WYDARZENIA podano dodatkowe instrukcje. Ten tekst celowo został ukryty. Aby usunąć tekst, zaznacz kolumnę A, a następnie naciśnij klawisz DELETE. Aby odkryć tekst, zaznacz kolumnę A, a następnie zmień kolor czcionki."]
[null,"Aby uzyskać więcej informacji o tabelach w tym arkuszu, w tabeli naciśnij klawisz SHIFT, a następnie F10, wybierz pozycję TABELA, a następnie TEKST ALTERNATYWNY."]

{"sheet":"PARAMETRY PROJEKTU","index":1,"n_rows":24,"n_cols":9,"rows_kept":24,"merged":[[13,5,13,8],[23,1,42,3]]}
["W tym arkuszu wprowadź parametry projektu. W komórce po prawej stronie wprowadź nazwa firmy. W komórkach w tej kolumnie podano przydatne instrukcje. Naciśnij strzałkę w dół, aby rozpocząć pracę.","Nazwa firmy"]
["W komórce po prawej stronie znajduje się tytuł tego arkusza.","Śledzenie projektu zarządzania wydarzeniem"]
["W komórce po prawej stronie znajduje się komunikat dotyczący poufności informacji.",{"$f":"\"Poufna \"&B1","v":"Poufna Nazwa firmy"}]
["W komórce po prawej stronie znajduje się porada.","Cieniowane komórki są obliczane automatycznie. Nie trzeba w nich niczego wprowadzać."]
["Wprowadź szczegóły w tabeli Parametry zaczynającej się od komórki po prawej stronie. Dalsze instrukcje znajdują się w komórce A12.","TYP PROJEKTU","KIEROWNIK DS. KLIENTA","KIEROWNIK PROJEKTU","KIEROWNIK DS. STRATEGII","SPECJALISTA DS. PROJEKTOWANIA","PERSONEL WYDARZENIA","PERSONEL ADMINISTRACYJNY","Suma"]
[null,"Opracowanie strategii wydarzenia",{"v":0.2,"d":"20%"},{"v":0.1,"d":"10%"},{"v":0.6,"d":"60%"},{"v":0,"d":"0%"},{"v":0,"d":"0%"},{"v":0.1,"d":"10%"},{"$f":"SUM(Parametry[[#This Row],[KIEROWNIK DS. KLIENTA]:[PERSONEL ADMINISTRACYJNY]])","v":{"v":1,"d":"100%"}}]
[null,"Planowanie wydarzenia",{"v":0.2,"d":"20%"},{"v":0.5,"d":"50%"},{"v":0.1,"d":"10%"},{"v":0.1,"d":"10%"},{"v":0,"d":"0%"},{"v":0.1,"d":"10%"},{"$f":"SUM(Parametry[[#This Row],[KIEROWNIK DS. KLIENTA]:[PERSONEL ADMINISTRACYJNY]])","v":{"v":0.9999999999999999,"d":"100%"}}]
[null,"Projektowanie wydarzenia",{"v":0.2,"d":"20%"},{"v":0.2,"d":"20%"},{"v":0,"d":"0%"},{"v":0.5,"d":"50%"},{"v":0,"d":"0%"},{"v":0.1,"d":"10%"},{"$f":"SUM(Parametry[[#This Row],[KIEROWNIK DS. KLIENTA]:[PERSONEL ADMINISTRACYJNY]])","v":{"v":1,"d":"100%"}}]
[null,"Logistyka wydarzenia",{"v":0.2,"d":"20%"},{"v":0.6,"d":"60%"},{"v":0,"d":"0%"},{"v":0,"d":"0%"},{"v":0.1,"d":"10%"},{"v":0.1,"d":"10%"},{"$f":"SUM(Parametry[[#This Row],[KIEROWNIK DS. KLIENTA]:[PERSONEL ADMINISTRACYJNY]])","v":{"v":1,"d":"100%"}}]
[null,"Obsadzanie wydarzenia",{"v":0.2,"d":"20%"},{"v":0.1,"d":"10%"},{"v":0,"d":"0%"},{"v":0,"d":"0%"},{"v":0.6,"d":"60%"},{"v":0.1,"d":"10%"},{"$f":"SUM(Parametry[[#This Row],[KIEROWNIK DS. KLIENTA]:[PERSONEL ADMINISTRACYJNY]])","v":{"v":1,"d":"100%"}}]
[null,"Ocena wydarzenia",{"v":0.2,"d":"20%"},{"v":0.2,"d":"20%"},{"v":0.2,"d":"20%"},{"v":0.2,"d":"20%"},{"v":0,"d":"0%"},{"v":0.2,"d":"20%"},{"$f":"SUM(Parametry[[#This Row],[KIEROWNIK DS. KLIENTA]:[PERSONEL ADMINISTRACYJNY]])","v":{"v":1,"d":"100%"}}]
["W komórkach po prawej stronie (od C12 do H12) wprowadź stawki uśrednione. Dalsze instrukcje znajdują się w komórce A14.","Stawki uśrednione",{"v":180,"d":"180 zł"},{"v":120,"d":"120 zł"},{"v":150,"d":"150 zł"},{"v":100,"d":"100 zł"},{"v":80,"d":"80 zł"},{"v":60,"d":"60 zł"}]
[]
["W komórce po prawej stronie znajduje się wykres kolumnowy przedstawiający porównanie planowane a koszt rzeczywisty, a w komórce F14 — wykres kolumnowy przedstawiający porównanie planowane a godziny rzeczywiste.",{"$nulls":4},"Ta komórka zawiera wykres kolumnowy przedstawiający porównanie godzin planowanych i rzeczywistych."]
[null,null,"KIEROWNIK DS. KLIENTA","KIEROWNIK PROJEKTU","KIEROWNIK DS. STRATEGII","SPECJALISTA DS. PROJEKTOWANIA","PERSONEL WYDARZENIA","PERSONEL ADMINISTRACYJNY"]
[null,"KOSZT PLANOWANY",{"$f":"SUBTOTAL(109,Szczegóły_projektu[KIEROWNIK DS. KLIENTA])","v":{"v":54000,"d":"54,000.00 zł"}},{"$f":"SUBTOTAL(109,Szczegóły_projektu[KIEROWNIK PROJEKTU])","v":{"v":52200,"d":"52,200.00 zł"}},{"$f":"SUBTOTAL(109,Szczegóły_projektu[KIEROWNIK DS. STRATEGII])","v":{"v":24000,"d":"24,000.00 zł"}},{"$f":"SUBTOTAL(109,Szczegóły_projektu[SPECJALISTA DS. PROJEKTOWANIA])","v":{"v":29000,"d":"29,000.00 zł"}},{"$f":"SUBTOTAL(109,Szczegóły_projektu[PERSONEL WYDARZENIA])","v":{"v":13200,"d":"13,200.00 zł"}},{"$f":"SUBTOTAL(109,Szczegóły_projektu[PERSONEL ADMINISTRACYJNY])","v":{"v":9000,"d":"9,000.00 zł"}}]
[null,"KOSZT RZECZYWISTY",{"$f":"SUBTOTAL(109,Szczegóły_projektu[KIEROWNIK DS. KLIENTA ])","v":{"v":54360,"d":"54,360.00 zł"}},{"$f":"SUBTOTAL(109,Szczegóły_projektu[[KIEROWNIK PROJEKTU ]])","v":{"v":51540,"d":"51,540.00 zł"}},{"$f":"SUBTOTAL(109,Szczegóły_projektu[KIEROWNIK DS. STRATEGII ])","v":{"v":25650,"d":"25,650.00 zł"}},{"$f":"SUBTOTAL(109,Szczegóły_projektu[SPECJALISTA DS. PROJEKTOWANIA ])","v":{"v":28900,"d":"28,900.00 zł"}},{"$f":"SUBTOTAL(109,Szczegóły_projektu[[PERSONEL WYDARZENIA ]])","v":{"v":13400,"d":"13,400.00 zł"}},{"$f":"SUBTOTAL(109,Szczegóły_projektu[[PERSONEL ADMINISTRACYJNY ]])","v":{"v":9060,"d":"9,060.00 zł"}}]
[null,"GODZINY PLANOWANE",{"$f":"C16/$C$12","v":{"v":300,"d":"300.00"}},{"$f":"D16/$C$12","v":{"v":290,"d":"290.00"}},{"v":133.33333333333334,"d":"133.33"},{"v":161.11111111111111,"d":"161.11"},{"v":73.33333333333333,"d":"73.33"},{"v":50,"d":"50.00"}]
[null,"GODZINY RZECZYWISTE",{"$f":"C17/$C$12","v":{"v":302,"d":"302.00"}},{"$f":"D17/$C$12","v":{"v":286.3333333333333,"d":"286.33"}},{"$f":"E17/$C$12","v":{"v":142.5,"d":"142.50"}},{"$f":"F17/$C$12","v":{"v":160.55555555555554,"d":"160.56"}},{"$f":"G17/$C$12","v":{"v":74.44444444444444,"d":"74.44"}},{"$f":"H17/$C$12","v":{"v":50.333333333333336,"d":"50.33"}}]
[]
[]
[]
[]
[null,"Ta komórka zawiera wykres kolumnowy przedstawiający porównanie kosztu planowanego i rzeczywistego."]

{"sheet":"SZCZEGÓŁY PROJEKTU","index":2,"n_rows":10,"n_cols":23,"rows_kept":10}
["W tym arkuszu wprowadź szczegóły projektu. Nazwa firmy jest automatycznie aktualizowana w komórce po prawej stronie. W komórkach w tej kolumnie podano przydatne instrukcje. Naciśnij strzałkę w dół, aby rozpocząć pracę.",{"$f":"'PARAMETRY PROJEKTU'!B1","v":"Nazwa firmy"}]
["W komórce po prawej stronie znajduje się tytuł tego arkusza.","Śledzenie projektu zarządzania wydarzeniem"]
["W komórce po prawej stronie znajduje się komunikat dotyczący poufności informacji.",{"$f":"'PARAMETRY PROJEKTU'!B3","v":"Poufna Nazwa firmy"}]
["Wprowadź informacje w tabeli Szczegóły projektu zaczynającej się od komórki po prawej stronie.\nINFORMACJE\nAby dodać wiersz w tabeli po prawej stronie, zaznacz komórkę w prawym dolnym rogu w treści tabeli (nie w wierszu sum) i naciśnij klawisz Tab lub naciśnij klawisze SHIFT+F10 w miejscu, w którym chcesz wstawić wiersz, i wybierz pozycję Wstaw | Wiersze tabeli powyżej/poniżej.\nPamiętaj o usunięciu wszystkich nieużywanych wierszy, ponieważ w tabeli przestawnej SUMY PROJEKTU będą używane wszystkie komórki tabeli, co w przypadku pozostawienia tych wierszy mogłoby skutkować błędnymi wynikami.","NAZWA PROJEKTU","TYP PROJEKTU","SZACOWANE ROZPOCZĘCIE","SZACOWANE ZAKOŃCZENIE","RZECZYWISTE ROZPOCZĘCIE","RZECZYWISTE ZAKOŃCZENIE","PRACA SZACOWANA","PRACA RZECZYWISTA","SZACOWANY CZAS TRWANIA","RZECZYWISTY CZAS TRWANIA","KIEROWNIK DS. KLIENTA","KIEROWNIK PROJEKTU","KIEROWNIK DS. STRATEGII","SPECJALISTA DS. PROJEKTOWANIA","PERSONEL WYDARZENIA","PERSONEL ADMINISTRACYJNY","KIEROWNIK DS. KLIENTA ","KIEROWNIK PROJEKTU ","KIEROWNIK DS. STRATEGII ","SPECJALISTA DS. PROJEKTOWANIA ","PERSONEL WYDARZENIA ","PERSONEL ADMINISTRACYJNY "]
[null,"Projekt 1","Opracowanie strategii wydarzenia",{"$f":"DATE(YEAR(TODAY()),6,9)","v":"2019-06-09"},{"$f":"DATE(YEAR(TODAY()),8,7)","v":"2019-08-07"},{"$f":"DATE(YEAR(TODAY()),6,29)","v":"2019-06-29"},{"$f":"DATE(YEAR(TODAY()),9,3)","v":"2019-09-03"},200,220,{"$f":"DAYS360(Szczegóły_projektu[[#This Row],[SZACOWANE ROZPOCZĘCIE]],Szczegóły_projektu[[#This Row],[SZACOWANE ZAKOŃCZENIE]],FALSE)","v":58},{"$f":"DAYS360(Szczegóły_projektu[[#This Row],[RZECZYWISTE ROZPOCZĘCIE]],Szczegóły_projektu[[#This Row],[RZECZYWISTE ZAKOŃCZENIE]],FALSE)","v":64},{"$f":"INDEX(Parametry[],MATCH(Szczegóły_projektu[[#This Row],[TYP PROJEKTU]],Parametry[TYP PROJEKTU],0),MATCH(Szczegóły_projektu[[#Headers],[KIEROWNIK DS. KLIENTA]],Parametry[#Headers],0))*INDEX('PARAMETRY PROJEKTU'!$B$12:$H$12,1,MATCH(Szczegóły_projektu[[#Headers],[KIEROWNIK DS. KLIENTA]],Parametry[#Headers],0))*Szczegóły_projektu[[#This Row],[PRACA SZACOWANA]]","v":{"v":7200,"d":"7,200 zł"}},{"$f":"INDEX(Parametry[],MATCH(Szczegóły_projektu[[#This Row],[TYP PROJEKTU]],Parametry[TYP PROJEKTU],0),MATCH(Szczegóły_projektu[[#Headers],[KIEROWNIK PROJEKTU]],Parametry[#Headers],0))*INDEX('PARAMETRY PROJEKTU'!$B$12:$H$12,1,MATCH(Szczegóły_projektu[[#Headers],[KIEROWNIK PROJEKTU]],Parametry[#Headers],0))*Szczegóły_projektu[[#This Row],[PRACA SZACOWANA]]","v":{"v":2400,"d":"2,400 zł"}},{"$f":"INDEX(Parametry[],MATCH(Szczegóły_projektu[[#This Row],[TYP PROJEKTU]],Parametry[TYP PROJEKTU],0),MATCH(Szczegóły_projektu[[#Headers],[KIEROWNIK DS. STRATEGII]],Parametry[#Headers],0))*INDEX('PARAMETRY PROJEKTU'!$B$12:$H$12,1,MATCH(Szczegóły_projektu[[#Headers],[KIEROWNIK DS. STRATEGII]],Parametry[#Headers],0))*Szczegóły_projektu[[#This Row],[PRACA SZACOWANA]]","v":{"v":18000,"d":"18,000 zł"}},{"$f":"INDEX(Parametry[],MATCH(Szczegóły_projektu[[#This Row],[TYP PROJEKTU]],Parametry[TYP PROJEKTU],0),MATCH(Szczegóły_projektu[[#Headers],[SPECJALISTA DS. PROJEKTOWANIA]],Parametry[#Headers],0))*INDEX('PARAMETRY PROJEKTU'!$B$12:$H$12,1,MATCH(Szczegóły_projektu[[#Headers],[SPECJALISTA DS. PROJEKTOWANIA]],Parametry[#Headers],0))*Szczegóły_projektu[[#This Row],[PRACA SZACOWANA]]","v":{"v":0,"d":"0 zł"}},{"$f":"INDEX(Parametry[],MATCH(Szczegóły_projektu[[#This Row],[TYP PROJEKTU]],Parametry[TYP PROJEKTU],0),MATCH(Szczegóły_projektu[[#Headers],[PERSONEL WYDARZENIA]],Parametry[#Headers],0))*INDEX('PARAMETRY PROJEKTU'!$B$12:$H$12,1,MATCH(Szczegóły_projektu[[#Headers],[PERSONEL WYDARZENIA]],Parametry[#Headers],0))*Szczegóły_projektu[[#This Row],[PRACA SZACOWANA]]","v":{"v":0,"d":"0 zł"}},{"$f":"INDEX(Parametry[],MATCH(Szczegóły_projektu[[#This Row],[TYP PROJEKTU]],Parametry[TYP PROJEKTU],0),MATCH(Szczegóły_projektu[[#Headers],[PERSONEL ADMINISTRACYJNY]],Parametry[#Headers],0))*INDEX('PARAMETRY PROJEKTU'!$B$12:$H$12,1,MATCH(Szczegóły_projektu[[#Headers],[PERSONEL ADMINISTRACYJNY]],Parametry[#Headers],0))*Szczegóły_projektu[[#This Row],[PRACA SZACOWANA]]","v":{"v":1200,"d":"1,200 zł"}},{"$f":"INDEX(Parametry[],MATCH(Szczegóły_projektu[[#This Row],[TYP PROJEKTU]],Parametry[TYP PROJEKTU],0),MATCH(Szczegóły_projektu[[#Headers],[KIEROWNIK DS. KLIENTA]],Parametry[#Headers],0))*INDEX('PARAMETRY PROJEKTU'!$B$12:$H$12,1,MATCH(Szczegóły_projektu[[#Headers],[KIEROWNIK DS. KLIENTA]],Parametry[#Headers],0))*Szczegóły_projektu[[#This Row],[PRACA RZECZYWISTA]]","v":{"v":7920,"d":"7,920 zł"}},{"$f":"INDEX(Parametry[],MATCH(Szczegóły_projektu[[#This Row],[TYP PROJEKTU]],Parametry[TYP PROJEKTU],0),MATCH(Szczegóły_projektu[[#Headers],[KIEROWNIK PROJEKTU]],Parametry[#Headers],0))*INDEX('PARAMETRY PROJEKTU'!$B$12:$H$12,1,MATCH(Szczegóły_projektu[[#Headers],[KIEROWNIK PROJEKTU]],Parametry[#Headers],0))*Szczegóły_projektu[[#This Row],[PRACA RZECZYWISTA]]","v":{"v":2640,"d":"2,640 zł"}},{"$f":"INDEX(Parametry[],MATCH(Szczegóły_projektu[[#This Row],[TYP PROJEKTU]],Parametry[TYP PROJEKTU],0),MATCH(Szczegóły_projektu[[#Headers],[KIEROWNIK DS. STRATEGII]],Parametry[#Headers],0))*INDEX('PARAMETRY PROJEKTU'!$B$12:$H$12,1,MATCH(Szczegóły_projektu[[#Headers],[KIEROWNIK DS. STRATEGII]],Parametry[#Headers],0))*Szczegóły_projektu[[#This Row],[PRACA RZECZYWISTA]]","v":{"v":19800,"d":"19,800 zł"}},{"$f":"INDEX(Parametry[],MATCH(Szczegóły_projektu[[#This Row],[TYP PROJEKTU]],Parametry[TYP PROJEKTU],0),MATCH(Szczegóły_projektu[[#Headers],[SPECJALISTA DS. PROJEKTOWANIA]],Parametry[#Headers],0))*INDEX('PARAMETRY PROJEKTU'!$B$12:$H$12,1,MATCH(Szczegóły_projektu[[#Headers],[SPECJALISTA DS. PROJEKTOWANIA]],Parametry[#Headers],0))*Szczegóły_projektu[[#This Row],[PRACA RZECZYWISTA]]","v":{"v":0,"d":"0 zł"}},{"$f":"INDEX(Parametry[],MATCH(Szczegóły_projektu[[#This Row],[TYP PROJEKTU]],Parametry[TYP PROJEKTU],0),MATCH(Szczegóły_projektu[[#Headers],[PERSONEL WYDARZENIA]],Parametry[#Headers],0))*INDEX('PARAMETRY PROJEKTU'!$B$12:$H$12,1,MATCH(Szczegóły_projektu[[#Headers],[PERSONEL WYDARZENIA]],Parametry[#Headers],0))*Szczegóły_projektu[[#This Row],[PRACA RZECZYWISTA]]","v":{"v":0,"d":"0 zł"}},{"$f":"INDEX(Parametry[],MATCH(Szczegóły_projektu[[#This Row],[TYP PROJEKTU]],Parametry[TYP PROJEKTU],0),MATCH(Szczegóły_projektu[[#Headers],[PERSONEL ADMINISTRACYJNY]],Parametry[#Headers],0))*INDEX('PARAMETRY PROJEKTU'!$B$12:$H$12,1,MATCH(Szczegóły_projektu[[#Headers],[PERSONEL ADMINISTRACYJNY]],Parametry[#Headers],0))*Szczegóły_projektu[[#This Row],[PRACA RZECZYWISTA]]","v":{"v":1320,"d":"1,320 zł"}}]
[null,"Projekt 2","Planowanie wydarzenia",{"$f":"DATE(YEAR(TODAY())+1,6,25)","v":"2020-06-25"},{"$f":"DATE(YEAR(TODAY())+1,7,27)","v":"2020-07-27"},{"$f":"DATE(YEAR(TODAY()),7,15)","v":"2019-07-15"},{"$f":"DATE(YEAR(TODAY())+1,8,25)","v":"2020-08-25"},400,390,{"$f":"DAYS360(Szczegóły_projektu[[#This Row],[SZACOWANE ROZPOCZĘCIE]],Szczegóły_projektu[[#This Row],[SZACOWANE ZAKOŃCZENIE]],FALSE)","v":32},{"$f":"DAYS360(Szczegóły_projektu[[#This Row],[RZECZYWISTE ROZPOCZĘCIE]],Szczegóły_projektu[[#This Row],[RZECZYWISTE ZAKOŃCZENIE]],FALSE)","v":400},{"$f":"INDEX(Parametry[],MATCH(Szczegóły_projektu[[#This Row],[TYP PROJEKTU]],Parametry[TYP PROJEKTU],0),MATCH(Szczegóły_projektu[[#Headers],[KIEROWNIK DS. KLIENTA]],Parametry[#Headers],0))*INDEX('PARAMETRY PROJEKTU'!$B$12:$H$12,1,MATCH(Szczegóły_projektu[[#Headers],[KIEROWNIK DS. KLIENTA]],Parametry[#Headers],0))*Szczegóły_projektu[[#This Row],[PRACA SZACOWANA]]","v":{"v":14400,"d":"14,400 zł"}},{"$f":"INDEX(Parametry[],MATCH(Szczegóły_projektu[[#This Row],[TYP PROJEKTU]],Parametry[TYP PROJEKTU],0),MATCH(Szczegóły_projektu[[#Headers],[KIEROWNIK PROJEKTU]],Parametry[#Headers],0))*INDEX('PARAMETRY PROJEKTU'!$B$12:$H$12,1,MATCH(Szczegóły_projektu[[#Headers],[KIEROWNIK PROJEKTU]],Parametry[#Headers],0))*Szczegóły_projektu[[#This Row],[PRACA SZACOWANA]]","v":{"v":24000,"d":"24,000 zł"}},{"$f":"INDEX(Parametry[],MATCH(Szczegóły_projektu[[#This Row],[TYP PROJEKTU]],Parametry[TYP PROJEKTU],0),MATCH(Szczegóły_projektu[[#Headers],[KIEROWNIK DS. STRATEGII]],Parametry[#Headers],0))*INDEX('PARAMETRY PROJEKTU'!$B$12:$H$12,1,MATCH(Szczegóły_projektu[[#Headers],[KIEROWNIK DS. STRATEGII]],Parametry[#Headers],0))*Szczegóły_projektu[[#This Row],[PRACA SZACOWANA]]","v":{"v":6000,"d":"6,000 zł"}},{"$f":"INDEX(Parametry[],MATCH(Szczegóły_projektu[[#This Row],[TYP PROJEKTU]],Parametry[TYP PROJEKTU],0),MATCH(Szczegóły_projektu[[#Headers],[SPECJALISTA DS. PROJEKTOWANIA]],Parametry[#Headers],0))*INDEX('PARAMETRY PROJEKTU'!$B$12:$H$12,1,MATCH(Szczegóły_projektu[[#Headers],[SPECJALISTA DS. PROJEKTOWANIA]],Parametry[#Headers],0))*Szczegóły_projektu[[#This Row],[PRACA SZACOWANA]]","v":{"v":4000,"d":"4,000 zł"}},{"$f":"INDEX(Parametry[],MATCH(Szczegóły_projektu[[#This Row],[TYP PROJEKTU]],Parametry[TYP PROJEKTU],0),MATCH(Szczegóły_projektu[[#Headers],[PERSONEL WYDARZENIA]],Parametry[#Headers],0))*INDEX('PARAMETRY PROJEKTU'!$B$12:$H$12,1,MATCH(Szczegóły_projektu[[#Headers],[PERSONEL WYDARZENIA]],Parametry[#Headers],0))*Szczegóły_projektu[[#This Row],[PRACA SZACOWANA]]","v":{"v":0,"d":"0 zł"}},{"$f":"INDEX(Parametry[],MATCH(Szczegóły_projektu[[#This Row],[TYP PROJEKTU]],Parametry[TYP PROJEKTU],0),MATCH(Szczegóły_projektu[[#Headers],[PERSONEL ADMINISTRACYJNY]],Parametry[#Headers],0))*INDEX('PARAMETRY PROJEKTU'!$B$12:$H$12,1,MATCH(Szczegóły_projektu[[#Headers],[PERSONEL ADMINISTRACYJNY]],Parametry[#Headers],0))*Szczegóły_projektu[[#This Row],[PRACA SZACOWANA]]","v":{"v":2400,"d":"2,400 zł"}},{"$f":"INDEX(Parametry[],MATCH(Szczegóły_projektu[[#This Row],[TYP PROJEKTU]],Parametry[TYP PROJEKTU],0),MATCH(Szczegóły_projektu[[#Headers],[KIEROWNIK DS. KLIENTA]],Parametry[#Headers],0))*INDEX('PARAMETRY PROJEKTU'!$B$12:$H$12,1,MATCH(Szczegóły_projektu[[#Headers],[KIEROWNIK DS. KLIENTA]],Parametry[#Headers],0))*Szczegóły_projektu[[#This Row],[PRACA RZECZYWISTA]]","v":{"v":14040,"d":"14,040 zł"}},{"$f":"INDEX(Parametry[],MATCH(Szczegóły_projektu[[#This Row],[TYP PROJEKTU]],Parametry[TYP PROJEKTU],0),MATCH(Szczegóły_projektu[[#Headers],[KIEROWNIK PROJEKTU]],Parametry[#Headers],0))*INDEX('PARAMETRY PROJEKTU'!$B$12:$H$12,1,MATCH(Szczegóły_projektu[[#Headers],[KIEROWNIK PROJEKTU]],Parametry[#Headers],0))*Szczegóły_projektu[[#This Row],[PRACA RZECZYWISTA]]","v":{"v":23400,"d":"23,400 zł"}},{"$f":"INDEX(Parametry[],MATCH(Szczegóły_projektu[[#This Row],[TYP PROJEKTU]],Parametry[TYP PROJEKTU],0),MATCH(Szczegóły_projektu[[#Headers],[KIEROWNIK DS. STRATEGII]],Parametry[#Headers],0))*INDEX('PARAMETRY PROJEKTU'!$B$12:$H$12,1,MATCH(Szczegóły_projektu[[#Headers],[KIEROWNIK DS. STRATEGII]],Parametry[#Headers],0))*Szczegóły_projektu[[#This Row],[PRACA RZECZYWISTA]]","v":{"v":5850,"d":"5,850 zł"}},{"$f":"INDEX(Parametry[],MATCH(Szczegóły_projektu[[#This Row],[TYP PROJEKTU]],Parametry[TYP PROJEKTU],0),MATCH(Szczegóły_projektu[[#Headers],[SPECJALISTA DS. PROJEKTOWANIA]],Parametry[#Headers],0))*INDEX('PARAMETRY PROJEKTU'!$B$12:$H$12,1,MATCH(Szczegóły_projektu[[#Headers],[SPECJALISTA DS. PROJEKTOWANIA]],Parametry[#Headers],0))*Szczegóły_projektu[[#This Row],[PRACA RZECZYWISTA]]","v":{"v":3900,"d":"3,900 zł"}},{"$f":"INDEX(Parametry[],MATCH(Szczegóły_projektu[[#This Row],[TYP PROJEKTU]],Parametry[TYP PROJEKTU],0),MATCH(Szczegóły_projektu[[#Headers],[PERSONEL WYDARZENIA]],Parametry[#Headers],0))*INDEX('PARAMETRY PROJEKTU'!$B$12:$H$12,1,MATCH(Szczegóły_projektu[[#Headers],[PERSONEL WYDARZENIA]],Parametry[#Headers],0))*Szczegóły_projektu[[#This Row],[PRACA RZECZYWISTA]]","v":{"v":0,"d":"0 zł"}},{"$f":"INDEX(Parametry[],MATCH(Szczegóły_projektu[[#This Row],[TYP PROJEKTU]],Parametry[TYP PROJEKTU],0),MATCH(Szczegóły_projektu[[#Headers],[PERSONEL ADMINISTRACYJNY]],Parametry[#Headers],0))*INDEX('PARAMETRY PROJEKTU'!$B$12:$H$12,1,MATCH(Szczegóły_projektu[[#Headers],[PERSONEL ADMINISTRACYJNY]],Parametry[#Headers],0))*Szczegóły_projektu[[#This Row],[PRACA RZECZYWISTA]]","v":{"v":2340,"d":"2,340 zł"}}]
[null,"Projekt 3","Projektowanie wydarzenia",{"$f":"DATE(YEAR(TODAY())+2,7,12)","v":"2021-07-12"},{"$f":"DATE(YEAR(TODAY())+2,9,19)","v":"2021-09-19"},{"$f":"DATE(YEAR(TODAY())+6,8,7)","v":"2025-08-07"},{"$f":"DATE(YEAR(TODAY())+6,10,10)","v":"2025-10-10"},500,500,{"$f":"DAYS360(Szczegóły_projektu[[#This Row],[SZACOWANE ROZPOCZĘCIE]],Szczegóły_projektu[[#This Row],[SZACOWANE ZAKOŃCZENIE]],FALSE)","v":67},{"$f":"DAYS360(Szczegóły_projektu[[#This Row],[RZECZYWISTE ROZPOCZĘCIE]],Szczegóły_projektu[[#This Row],[RZECZYWISTE ZAKOŃCZENIE]],FALSE)","v":63},{"$f":"INDEX(Parametry[],MATCH(Szczegóły_projektu[[#This Row],[TYP PROJEKTU]],Parametry[TYP PROJEKTU],0),MATCH(Szczegóły_projektu[[#Headers],[KIEROWNIK DS. KLIENTA]],Parametry[#Headers],0))*INDEX('PARAMETRY PROJEKTU'!$B$12:$H$12,1,MATCH(Szczegóły_projektu[[#Headers],[KIEROWNIK DS. KLIENTA]],Parametry[#Headers],0))*Szczegóły_projektu[[#This Row],[PRACA SZACOWANA]]","v":{"v":18000,"d":"18,000 zł"}},{"$f":"INDEX(Parametry[],MATCH(Szczegóły_projektu[[#This Row],[TYP PROJEKTU]],Parametry[TYP PROJEKTU],0),MATCH(Szczegóły_projektu[[#Headers],[KIEROWNIK PROJEKTU]],Parametry[#Headers],0))*INDEX('PARAMETRY PROJEKTU'!$B$12:$H$12,1,MATCH(Szczegóły_projektu[[#Headers],[KIEROWNIK PROJEKTU]],Parametry[#Headers],0))*Szczegóły_projektu[[#This Row],[PRACA SZACOWANA]]","v":{"v":12000,"d":"12,000 zł"}},{"$f":"INDEX(Parametry[],MATCH(Szczegóły_projektu[[#This Row],[TYP PROJEKTU]],Parametry[TYP PROJEKTU],0),MATCH(Szczegóły_projektu[[#Headers],[KIEROWNIK DS. STRATEGII]],Parametry[#Headers],0))*INDEX('PARAMETRY PROJEKTU'!$B$12:$H$12,1,MATCH(Szczegóły_projektu[[#Headers],[KIEROWNIK DS. STRATEGII]],Parametry[#Headers],0))*Szczegóły_projektu[[#This Row],[PRACA SZACOWANA]]","v":{"v":0,"d":"0 zł"}},{"$f":"INDEX(Parametry[],MATCH(Szczegóły_projektu[[#This Row],[TYP PROJEKTU]],Parametry[TYP PROJEKTU],0),MATCH(Szczegóły_projektu[[#Headers],[SPECJALISTA DS. PROJEKTOWANIA]],Parametry[#Headers],0))*INDEX('PARAMETRY PROJEKTU'!$B$12:$H$12,1,MATCH(Szczegóły_projektu[[#Headers],[SPECJALISTA DS. PROJEKTOWANIA]],Parametry[#Headers],0))*Szczegóły_projektu[[#This Row],[PRACA SZACOWANA]]","v":{"v":25000,"d":"25,000 zł"}},{"$f":"INDEX(Parametry[],MATCH(Szczegóły_projektu[[#This Row],[TYP PROJEKTU]],Parametry[TYP PROJEKTU],0),MATCH(Szczegóły_projektu[[#Headers],[PERSONEL WYDARZENIA]],Parametry[#Headers],0))*INDEX('PARAMETRY PROJEKTU'!$B$12:$H$12,1,MATCH(Szczegóły_projektu[[#Headers],[PERSONEL WYDARZENIA]],Parametry[#Headers],0))*Szczegóły_projektu[[#This Row],[PRACA SZACOWANA]]","v":{"v":0,"d":"0 zł"}},{"$f":"INDEX(Parametry[],MATCH(Szczegóły_projektu[[#This Row],[TYP PROJEKTU]],Parametry[TYP PROJEKTU],0),MATCH(Szczegóły_projektu[[#Headers],[PERSONEL ADMINISTRACYJNY]],Parametry[#Headers],0))*INDEX('PARAMETRY PROJEKTU'!$B$12:$H$12,1,MATCH(Szczegóły_projektu[[#Headers],[PERSONEL ADMINISTRACYJNY]],Parametry[#Headers],0))*Szczegóły_projektu[[#This Row],[PRACA SZACOWANA]]","v":{"v":3000,"d":"3,000 zł"}},{"$f":"INDEX(Parametry[],MATCH(Szczegóły_projektu[[#This Row],[TYP PROJEKTU]],Parametry[TYP PROJEKTU],0),MATCH(Szczegóły_projektu[[#Headers],[KIEROWNIK DS. KLIENTA]],Parametry[#Headers],0))*INDEX('PARAMETRY PROJEKTU'!$B$12:$H$12,1,MATCH(Szczegóły_projektu[[#Headers],[KIEROWNIK DS. KLIENTA]],Parametry[#Headers],0))*Szczegóły_projektu[[#This Row],[PRACA RZECZYWISTA]]","v":{"v":18000,"d":"18,000 zł"}},{"$f":"INDEX(Parametry[],MATCH(Szczegóły_projektu[[#This Row],[TYP PROJEKTU]],Parametry[TYP PROJEKTU],0),MATCH(Szczegóły_projektu[[#Headers],[KIEROWNIK PROJEKTU]],Parametry[#Headers],0))*INDEX('PARAMETRY PROJEKTU'!$B$12:$H$12,1,MATCH(Szczegóły_projektu[[#Headers],[KIEROWNIK PROJEKTU]],Parametry[#Headers],0))*Szczegóły_projektu[[#This Row],[PRACA RZECZYWISTA]]","v":{"v":12000,"d":"12,000 zł"}},{"$f":"INDEX(Parametry[],MATCH(Szczegóły_projektu[[#This Row],[TYP PROJEKTU]],Parametry[TYP PROJEKTU],0),MATCH(Szczegóły_projektu[[#Headers],[KIEROWNIK DS. STRATEGII]],Parametry[#Headers],0))*INDEX('PARAMETRY PROJEKTU'!$B$12:$H$12,1,MATCH(Szczegóły_projektu[[#Headers],[KIEROWNIK DS. STRATEGII]],Parametry[#Headers],0))*Szczegóły_projektu[[#This Row],[PRACA RZECZYWISTA]]","v":{"v":0,"d":"0 zł"}},{"$f":"INDEX(Parametry[],MATCH(Szczegóły_projektu[[#This Row],[TYP PROJEKTU]],Parametry[TYP PROJEKTU],0),MATCH(Szczegóły_projektu[[#Headers],[SPECJALISTA DS. PROJEKTOWANIA]],Parametry[#Headers],0))*INDEX('PARAMETRY PROJEKTU'!$B$12:$H$12,1,MATCH(Szczegóły_projektu[[#Headers],[SPECJALISTA DS. PROJEKTOWANIA]],Parametry[#Headers],0))*Szczegóły_projektu[[#This Row],[PRACA RZECZYWISTA]]","v":{"v":25000,"d":"25,000 zł"}},{"$f":"INDEX(Parametry[],MATCH(Szczegóły_projektu[[#This Row],[TYP PROJEKTU]],Parametry[TYP PROJEKTU],0),MATCH(Szczegóły_projektu[[#Headers],[PERSONEL WYDARZENIA]],Parametry[#Headers],0))*INDEX('PARAMETRY PROJEKTU'!$B$12:$H$12,1,MATCH(Szczegóły_projektu[[#Headers],[PERSONEL WYDARZENIA]],Parametry[#Headers],0))*Szczegóły_projektu[[#This Row],[PRACA RZECZYWISTA]]","v":{"v":0,"d":"0 zł"}},{"$f":"INDEX(Parametry[],MATCH(Szczegóły_projektu[[#This Row],[TYP PROJEKTU]],Parametry[TYP PROJEKTU],0),MATCH(Szczegóły_projektu[[#Headers],[PERSONEL ADMINISTRACYJNY]],Parametry[#Headers],0))*INDEX('PARAMETRY PROJEKTU'!$B$12:$H$12,1,MATCH(Szczegóły_projektu[[#Headers],[PERSONEL ADMINISTRACYJNY]],Parametry[#Headers],0))*Szczegóły_projektu[[#This Row],[PRACA RZECZYWISTA]]","v":{"v":3000,"d":"3,000 zł"}}]
[null,"Projekt 4","Logistyka wydarzenia",{"$f":"DATE(YEAR(TODAY())+3,7,30)","v":"2022-07-30"},{"$f":"DATE(YEAR(TODAY())+3,9,28)","v":"2022-09-28"},{"$f":"DATE(YEAR(TODAY())+3,9,14)","v":"2022-09-14"},{"$f":"DATE(YEAR(TODAY())+3,11,13)","v":"2022-11-13"},150,145,{"$f":"DAYS360(Szczegóły_projektu[[#This Row],[SZACOWANE ROZPOCZĘCIE]],Szczegóły_projektu[[#This Row],[SZACOWANE ZAKOŃCZENIE]],FALSE)","v":58},{"$f":"DAYS360(Szczegóły_projektu[[#This Row],[RZECZYWISTE ROZPOCZĘCIE]],Szczegóły_projektu[[#This Row],[RZECZYWISTE ZAKOŃCZENIE]],FALSE)","v":59},{"$f":"INDEX(Parametry[],MATCH(Szczegóły_projektu[[#This Row],[TYP PROJEKTU]],Parametry[TYP PROJEKTU],0),MATCH(Szczegóły_projektu[[#Headers],[KIEROWNIK DS. KLIENTA]],Parametry[#Headers],0))*INDEX('PARAMETRY PROJEKTU'!$B$12:$H$12,1,MATCH(Szczegóły_projektu[[#Headers],[KIEROWNIK DS. KLIENTA]],Parametry[#Headers],0))*Szczegóły_projektu[[#This Row],[PRACA SZACOWANA]]","v":{"v":5400,"d":"5,400 zł"}},{"$f":"INDEX(Parametry[],MATCH(Szczegóły_projektu[[#This Row],[TYP PROJEKTU]],Parametry[TYP PROJEKTU],0),MATCH(Szczegóły_projektu[[#Headers],[KIEROWNIK PROJEKTU]],Parametry[#Headers],0))*INDEX('PARAMETRY PROJEKTU'!$B$12:$H$12,1,MATCH(Szczegóły_projektu[[#Headers],[KIEROWNIK PROJEKTU]],Parametry[#Headers],0))*Szczegóły_projektu[[#This Row],[PRACA SZACOWANA]]","v":{"v":10800,"d":"10,800 zł"}},{"$f":"INDEX(Parametry[],MATCH(Szczegóły_projektu[[#This Row],[TYP PROJEKTU]],Parametry[TYP PROJEKTU],0),MATCH(Szczegóły_projektu[[#Headers],[KIEROWNIK DS. STRATEGII]],Parametry[#Headers],0))*INDEX('PARAMETRY PROJEKTU'!$B$12:$H$12,1,MATCH(Szczegóły_projektu[[#Headers],[KIEROWNIK DS. STRATEGII]],Parametry[#Headers],0))*Szczegóły_projektu[[#This Row],[PRACA SZACOWANA]]","v":{"v":0,"d":"0 zł"}},{"$f":"INDEX(Parametry[],MATCH(Szczegóły_projektu[[#This Row],[TYP PROJEKTU]],Parametry[TYP PROJEKTU],0),MATCH(Szczegóły_projektu[[#Headers],[SPECJALISTA DS. PROJEKTOWANIA]],Parametry[#Headers],0))*INDEX('PARAMETRY PROJEKTU'!$B$12:$H$12,1,MATCH(Szczegóły_projektu[[#Headers],[SPECJALISTA DS. PROJEKTOWANIA]],Parametry[#Headers],0))*Szczegóły_projektu[[#This Row],[PRACA SZACOWANA]]","v":{"v":0,"d":"0 zł"}},{"$f":"INDEX(Parametry[],MATCH(Szczegóły_projektu[[#This Row],[TYP PROJEKTU]],Parametry[TYP PROJEKTU],0),MATCH(Szczegóły_projektu[[#Headers],[PERSONEL WYDARZENIA]],Parametry[#Headers],0))*INDEX('PARAMETRY PROJEKTU'!$B$12:$H$12,1,MATCH(Szczegóły_projektu[[#Headers],[PERSONEL WYDARZENIA]],Parametry[#Headers],0))*Szczegóły_projektu[[#This Row],[PRACA SZACOWANA]]","v":{"v":1200,"d":"1,200 zł"}},{"$f":"INDEX(Parametry[],MATCH(Szczegóły_projektu[[#This Row],[TYP PROJEKTU]],Parametry[TYP PROJEKTU],0),MATCH(Szczegóły_projektu[[#Headers],[PERSONEL ADMINISTRACYJNY]],Parametry[#Headers],0))*INDEX('PARAMETRY PROJEKTU'!$B$12:$H$12,1,MATCH(Szczegóły_projektu[[#Headers],[PERSONEL ADMINISTRACYJNY]],Parametry[#Headers],0))*Szczegóły_projektu[[#This Row],[PRACA SZACOWANA]]","v":{"v":900,"d":"900 zł"}},{"$f":"INDEX(Parametry[],MATCH(Szczegóły_projektu[[#This Row],[TYP PROJEKTU]],Parametry[TYP PROJEKTU],0),MATCH(Szczegóły_projektu[[#Headers],[KIEROWNIK DS. KLIENTA]],Parametry[#Headers],0))*INDEX('PARAMETRY PROJEKTU'!$B$12:$H$12,1,MATCH(Szczegóły_projektu[[#Headers],[KIEROWNIK DS. KLIENTA]],Parametry[#Headers],0))*Szczegóły_projektu[[#This Row],[PRACA RZECZYWISTA]]","v":{"v":5220,"d":"5,220 zł"}},{"$f":"INDEX(Parametry[],MATCH(Szczegóły_projektu[[#This Row],[TYP PROJEKTU]],Parametry[TYP PROJEKTU],0),MATCH(Szczegóły_projektu[[#Headers],[KIEROWNIK PROJEKTU]],Parametry[#Headers],0))*INDEX('PARAMETRY PROJEKTU'!$B$12:$H$12,1,MATCH(Szczegóły_projektu[[#Headers],[KIEROWNIK PROJEKTU]],Parametry[#Headers],0))*Szczegóły_projektu[[#This Row],[PRACA RZECZYWISTA]]","v":{"v":10440,"d":"10,440 zł"}},{"$f":"INDEX(Parametry[],MATCH(Szczegóły_projektu[[#This Row],[TYP PROJEKTU]],Parametry[TYP PROJEKTU],0),MATCH(Szczegóły_projektu[[#Headers],[KIEROWNIK DS. STRATEGII]],Parametry[#Headers],0))*INDEX('PARAMETRY PROJEKTU'!$B$12:$H$12,1,MATCH(Szczegóły_projektu[[#Headers],[KIEROWNIK DS. STRATEGII]],Parametry[#Headers],0))*Szczegóły_projektu[[#This Row],[PRACA RZECZYWISTA]]","v":{"v":0,"d":"0 zł"}},{"$f":"INDEX(Parametry[],MATCH(Szczegóły_projektu[[#This Row],[TYP PROJEKTU]],Parametry[TYP PROJEKTU],0),MATCH(Szczegóły_projektu[[#Headers],[SPECJALISTA DS. PROJEKTOWANIA]],Parametry[#Headers],0))*INDEX('PARAMETRY PROJEKTU'!$B$12:$H$12,1,MATCH(Szczegóły_projektu[[#Headers],[SPECJALISTA DS. PROJEKTOWANIA]],Parametry[#Headers],0))*Szczegóły_projektu[[#This Row],[PRACA RZECZYWISTA]]","v":{"v":0,"d":"0 zł"}},{"$f":"INDEX(Parametry[],MATCH(Szczegóły_projektu[[#This Row],[TYP PROJEKTU]],Parametry[TYP PROJEKTU],0),MATCH(Szczegóły_projektu[[#Headers],[PERSONEL WYDARZENIA]],Parametry[#Headers],0))*INDEX('PARAMETRY PROJEKTU'!$B$12:$H$12,1,MATCH(Szczegóły_projektu[[#Headers],[PERSONEL WYDARZENIA]],Parametry[#Headers],0))*Szczegóły_projektu[[#This Row],[PRACA RZECZYWISTA]]","v":{"v":1160,"d":"1,160 zł"}},{"$f":"INDEX(Parametry[],MATCH(Szczegóły_projektu[[#This Row],[TYP PROJEKTU]],Parametry[TYP PROJEKTU],0),MATCH(Szczegóły_projektu[[#Headers],[PERSONEL ADMINISTRACYJNY]],Parametry[#Headers],0))*INDEX('PARAMETRY PROJEKTU'!$B$12:$H$12,1,MATCH(Szczegóły_projektu[[#Headers],[PERSONEL ADMINISTRACYJNY]],Parametry[#Headers],0))*Szczegóły_projektu[[#This Row],[PRACA RZECZYWISTA]]","v":{"v":870,"d":"870 zł"}}]
[null,"Projekt 5","Obsadzanie wydarzenia",{"$f":"DATE(YEAR(TODAY())+4,8,11)","v":"2023-08-11"},{"$f":"DATE(YEAR(TODAY())+4,8,21)","v":"2023-08-21"},{"$f":"DATE(YEAR(TODAY())+4,9,14)","v":"2023-09-14"},{"$f":"DATE(YEAR(TODAY())+4,9,25)","v":"2023-09-25"},250,255,{"$f":"DAYS360(Szczegóły_projektu[[#This Row],[SZACOWANE ROZPOCZĘCIE]],Szczegóły_projektu[[#This Row],[SZACOWANE ZAKOŃCZENIE]],FALSE)","v":10},{"$f":"DAYS360(Szczegóły_projektu[[#This Row],[RZECZYWISTE ROZPOCZĘCIE]],Szczegóły_projektu[[#This Row],[RZECZYWISTE ZAKOŃCZENIE]],FALSE)","v":11},{"$f":"INDEX(Parametry[],MATCH(Szczegóły_projektu[[#This Row],[TYP PROJEKTU]],Parametry[TYP PROJEKTU],0),MATCH(Szczegóły_projektu[[#Headers],[KIEROWNIK DS. KLIENTA]],Parametry[#Headers],0))*INDEX('PARAMETRY PROJEKTU'!$B$12:$H$12,1,MATCH(Szczegóły_projektu[[#Headers],[KIEROWNIK DS. KLIENTA]],Parametry[#Headers],0))*Szczegóły_projektu[[#This Row],[PRACA SZACOWANA]]","v":{"v":9000,"d":"9,000 zł"}},{"$f":"INDEX(Parametry[],MATCH(Szczegóły_projektu[[#This Row],[TYP PROJEKTU]],Parametry[TYP PROJEKTU],0),MATCH(Szczegóły_projektu[[#Headers],[KIEROWNIK PROJEKTU]],Parametry[#Headers],0))*INDEX('PARAMETRY PROJEKTU'!$B$12:$H$12,1,MATCH(Szczegóły_projektu[[#Headers],[KIEROWNIK PROJEKTU]],Parametry[#Headers],0))*Szczegóły_projektu[[#This Row],[PRACA SZACOWANA]]","v":{"v":3000,"d":"3,000 zł"}},{"$f":"INDEX(Parametry[],MATCH(Szczegóły_projektu[[#This Row],[TYP PROJEKTU]],Parametry[TYP PROJEKTU],0),MATCH(Szczegóły_projektu[[#Headers],[KIEROWNIK DS. STRATEGII]],Parametry[#Headers],0))*INDEX('PARAMETRY PROJEKTU'!$B$12:$H$12,1,MATCH(Szczegóły_projektu[[#Headers],[KIEROWNIK DS. STRATEGII]],Parametry[#Headers],0))*Szczegóły_projektu[[#This Row],[PRACA SZACOWANA]]","v":{"v":0,"d":"0 zł"}},{"$f":"INDEX(Parametry[],MATCH(Szczegóły_projektu[[#This Row],[TYP PROJEKTU]],Parametry[TYP PROJEKTU],0),MATCH(Szczegóły_projektu[[#Headers],[SPECJALISTA DS. PROJEKTOWANIA]],Parametry[#Headers],0))*INDEX('PARAMETRY PROJEKTU'!$B$12:$H$12,1,MATCH(Szczegóły_projektu[[#Headers],[SPECJALISTA DS. PROJEKTOWANIA]],Parametry[#Headers],0))*Szczegóły_projektu[[#This Row],[PRACA SZACOWANA]]","v":{"v":0,"d":"0 zł"}},{"$f":"INDEX(Parametry[],MATCH(Szczegóły_projektu[[#This Row],[TYP PROJEKTU]],Parametry[TYP PROJEKTU],0),MATCH(Szczegóły_projektu[[#Headers],[PERSONEL WYDARZENIA]],Parametry[#Headers],0))*INDEX('PARAMETRY PROJEKTU'!$B$12:$H$12,1,MATCH(Szczegóły_projektu[[#Headers],[PERSONEL WYDARZENIA]],Parametry[#Headers],0))*Szczegóły_projektu[[#This Row],[PRACA SZACOWANA]]","v":{"v":12000,"d":"12,000 zł"}},{"$f":"INDEX(Parametry[],MATCH(Szczegóły_projektu[[#This Row],[TYP PROJEKTU]],Parametry[TYP PROJEKTU],0),MATCH(Szczegóły_projektu[[#Headers],[PERSONEL ADMINISTRACYJNY]],Parametry[#Headers],0))*INDEX('PARAMETRY PROJEKTU'!$B$12:$H$12,1,MATCH(Szczegóły_projektu[[#Headers],[PERSONEL ADMINISTRACYJNY]],Parametry[#Headers],0))*Szczegóły_projektu[[#This Row],[PRACA SZACOWANA]]","v":{"v":1500,"d":"1,500 zł"}},{"$f":"INDEX(Parametry[],MATCH(Szczegóły_projektu[[#This Row],[TYP PROJEKTU]],Parametry[TYP PROJEKTU],0),MATCH(Szczegóły_projektu[[#Headers],[KIEROWNIK DS. KLIENTA]],Parametry[#Headers],0))*INDEX('PARAMETRY PROJEKTU'!$B$12:$H$12,1,MATCH(Szczegóły_projektu[[#Headers],[KIEROWNIK DS. KLIENTA]],Parametry[#Headers],0))*Szczegóły_projektu[[#This Row],[PRACA RZECZYWISTA]]","v":{"v":9180,"d":"9,180 zł"}},{"$f":"INDEX(Parametry[],MATCH(Szczegóły_projektu[[#This Row],[TYP PROJEKTU]],Parametry[TYP PROJEKTU],0),MATCH(Szczegóły_projektu[[#Headers],[KIEROWNIK PROJEKTU]],Parametry[#Headers],0))*INDEX('PARAMETRY PROJEKTU'!$B$12:$H$12,1,MATCH(Szczegóły_projektu[[#Headers],[KIEROWNIK PROJEKTU]],Parametry[#Headers],0))*Szczegóły_projektu[[#This Row],[PRACA RZECZYWISTA]]","v":{"v":3060,"d":"3,060 zł"}},{"$f":"INDEX(Parametry[],MATCH(Szczegóły_projektu[[#This Row],[TYP PROJEKTU]],Parametry[TYP PROJEKTU],0),MATCH(Szczegóły_projektu[[#Headers],[KIEROWNIK DS. STRATEGII]],Parametry[#Headers],0))*INDEX('PARAMETRY PROJEKTU'!$B$12:$H$12,1,MATCH(Szczegóły_projektu[[#Headers],[KIEROWNIK DS. STRATEGII]],Parametry[#Headers],0))*Szczegóły_projektu[[#This Row],[PRACA RZECZYWISTA]]","v":{"v":0,"d":"0 zł"}},{"$f":"INDEX(Parametry[],MATCH(Szczegóły_projektu[[#This Row],[TYP PROJEKTU]],Parametry[TYP PROJEKTU],0),MATCH(Szczegóły_projektu[[#Headers],[SPECJALISTA DS. PROJEKTOWANIA]],Parametry[#Headers],0))*INDEX('PARAMETRY PROJEKTU'!$B$12:$H$12,1,MATCH(Szczegóły_projektu[[#Headers],[SPECJALISTA DS. PROJEKTOWANIA]],Parametry[#Headers],0))*Szczegóły_projektu[[#This Row],[PRACA RZECZYWISTA]]","v":{"v":0,"d":"0 zł"}},{"$f":"INDEX(Parametry[],MATCH(Szczegóły_projektu[[#This Row],[TYP PROJEKTU]],Parametry[TYP PROJEKTU],0),MATCH(Szczegóły_projektu[[#Headers],[PERSONEL WYDARZENIA]],Parametry[#Headers],0))*INDEX('PARAMETRY PROJEKTU'!$B$12:$H$12,1,MATCH(Szczegóły_projektu[[#Headers],[PERSONEL WYDARZENIA]],Parametry[#Headers],0))*Szczegóły_projektu[[#This Row],[PRACA RZECZYWISTA]]","v":{"v":12240,"d":"12,240 zł"}},{"$f":"INDEX(Parametry[],MATCH(Szczegóły_projektu[[#This Row],[TYP PROJEKTU]],Parametry[TYP PROJEKTU],0),MATCH(Szczegóły_projektu[[#Headers],[PERSONEL ADMINISTRACYJNY]],Parametry[#Headers],0))*INDEX('PARAMETRY PROJEKTU'!$B$12:$H$12,1,MATCH(Szczegóły_projektu[[#Headers],[PERSONEL ADMINISTRACYJNY]],Parametry[#Headers],0))*Szczegóły_projektu[[#This Row],[PRACA RZECZYWISTA]]","v":{"v":1530,"d":"1,530 zł"}}]
[null,"SUMA",{"$nulls":5},{"$f":"SUBTOTAL(109,Szczegóły_projektu[PRACA SZACOWANA])","v":1500},{"$f":"SUBTOTAL(109,Szczegóły_projektu[PRACA RZECZYWISTA])","v":1510},{"$f":"SUBTOTAL(109,Szczegóły_projektu[SZACOWANY CZAS TRWANIA])","v":225},{"$f":"SUBTOTAL(109,Szczegóły_projektu[RZECZYWISTY CZAS TRWANIA])","v":597}]

{"sheet":"SUMY PROJEKTU","index":3,"n_rows":10,"n_cols":14,"rows_kept":10}
["W tym arkuszu uzyskasz sumy projektu. Nazwa firmy jest automatycznie aktualizowana w komórce po prawej stronie. W komórkach w tej kolumnie podano przydatne instrukcje. Naciśnij strzałkę w dół, aby rozpocząć pracę.",{"$f":"'PARAMETRY PROJEKTU'!B1","v":"Nazwa firmy"}]
["W komórce po prawej stronie znajduje się tytuł tego arkusza.","Śledzenie projektu zarządzania wydarzeniem"]
["W komórce po prawej stronie znajduje się komunikat dotyczący poufności informacji.",{"$f":"'PARAMETRY PROJEKTU'!B3","v":"Poufna Nazwa firmy"}]
["Tabela przestawna zaczynająca się w komórce po prawej stronie jest aktualizowana automatycznie.\nINFORMACJE\nAby odświeżyć tabelę przestawną po prawej stronie, zaznacz ją (dowolną komórkę w tej tabeli przestawnej) i na karcie wstążki NARZĘDZIA TABEL PRZESTAWNYCH | ANALIZA wybierz pozycję Odśwież. Ewentualnie w dowolnej komórce tabeli przestawnej naciśnij klawisze SHIFT+F10 i wybierz pozycję Odśwież.","NAZWA PROJEKTU","KIEROWNIK DS. KLIENTA: SZACOWANE","KIEROWNIK PROJEKTU: SZACOWANE","KIEROWNIK DS. STRATEGII: SZACOWANE","SPECJALISTA DS. PROJEKTOWANIA: SZACOWANE","PERSONEL WYDARZENIA: SZACOWANE","PERSONEL ADMINISTRACYJNY: SZACOWANE","KIEROWNIK DS. KLIENTA: RZECZYWISTE","KIEROWNIK PROJEKTU: RZECZYWISTE","KIEROWNIK DS. STRATEGII: RZECZYWISTE","SPECJALISTA DS. PROJEKTOWANIA: RZECZYWISTE","PERSONEL WYDARZENIA: RZECZYWISTE","PERSONEL ADMINISTRACYJNY: RZECZYWISTE"]
[null,"Projekt 1",{"v":7200,"d":"7,200.00 zł"},{"v":2400,"d":"2,400.00 zł"},{"v":18000,"d":"18,000.00 zł"},{"v":0,"d":"0.00 zł"},{"v":0,"d":"0.00 zł"},{"v":1200,"d":"1,200.00 zł"},{"v":7920,"d":"7,920.00 zł"},{"v":2640,"d":"2,640.00 zł"},{"v":19800,"d":"19,800.00 zł"},{"v":0,"d":"0.00 zł"},{"v":0,"d":"0.00 zł"},{"v":1320,"d":"1,320.00 zł"}]
[null,"Projekt 2",{"v":14400,"d":"14,400.00 zł"},{"v":24000,"d":"24,000.00 zł"},{"v":6000,"d":"6,000.00 zł"},{"v":4000,"d":"4,000.00 zł"},{"v":0,"d":"0.00 zł"},{"v":2400,"d":"2,400.00 zł"},{"v":14040,"d":"14,040.00 zł"},{"v":23400,"d":"23,400.00 zł"},{"v":5850,"d":"5,850.00 zł"},{"v":3900,"d":"3,900.00 zł"},{"v":0,"d":"0.00 zł"},{"v":2340,"d":"2,340.00 zł"}]
[null,"Projekt 3",{"v":18000,"d":"18,000.00 zł"},{"v":12000,"d":"12,000.00 zł"},{"v":0,"d":"0.00 zł"},{"v":25000,"d":"25,000.00 zł"},{"v":0,"d":"0.00 zł"},{"v":3000,"d":"3,000.00 zł"},{"v":18000,"d":"18,000.00 zł"},{"v":12000,"d":"12,000.00 zł"},{"v":0,"d":"0.00 zł"},{"v":25000,"d":"25,000.00 zł"},{"v":0,"d":"0.00 zł"},{"v":3000,"d":"3,000.00 zł"}]
[null,"Projekt 4",{"v":5400,"d":"5,400.00 zł"},{"v":10800,"d":"10,800.00 zł"},{"v":0,"d":"0.00 zł"},{"v":0,"d":"0.00 zł"},{"v":1200,"d":"1,200.00 zł"},{"v":900,"d":"900.00 zł"},{"v":5220,"d":"5,220.00 zł"},{"v":10440,"d":"10,440.00 zł"},{"v":0,"d":"0.00 zł"},{"v":0,"d":"0.00 zł"},{"v":1160,"d":"1,160.00 zł"},{"v":870,"d":"870.00 zł"}]
[null,"Projekt 5",{"v":9000,"d":"9,000.00 zł"},{"v":3000,"d":"3,000.00 zł"},{"v":0,"d":"0.00 zł"},{"v":0,"d":"0.00 zł"},{"v":12000,"d":"12,000.00 zł"},{"v":1500,"d":"1,500.00 zł"},{"v":9180,"d":"9,180.00 zł"},{"v":3060,"d":"3,060.00 zł"},{"v":0,"d":"0.00 zł"},{"v":0,"d":"0.00 zł"},{"v":12240,"d":"12,240.00 zł"},{"v":1530,"d":"1,530.00 zł"}]
[null,"Suma końcowa",{"v":54000,"d":"54,000.00 zł"},{"v":52200,"d":"52,200.00 zł"},{"v":24000,"d":"24,000.00 zł"},{"v":29000,"d":"29,000.00 zł"},{"v":13200,"d":"13,200.00 zł"},{"v":9000,"d":"9,000.00 zł"},{"v":54360,"d":"54,360.00 zł"},{"v":51540,"d":"51,540.00 zł"},{"v":25650,"d":"25,650.00 zł"},{"v":28900,"d":"28,900.00 zł"},{"v":13400,"d":"13,400.00 zł"},{"v":9060,"d":"9,060.00 zł"}]